fUSD/lending_fUSD_20240814
["ID","MTS","AMOUNT","RATE_DAILY","PERIOD"]
[334826103,1723605062312,-802.79,0.00013972,2]
[334826104,1723605062326,-500.0,0.00013972,2]
[334826105,1723605062338,-500.0,0.00013972,2]
[334826106,1723605062350,-500.0,0.00013972,2]
[334826107,1723605062361,-500.0,0.00013972,2]
[334826108,1723605062372,-500.0,0.00013972,2]
[334826109,1723605062384,-1957.25,0.00013972,2]
[334826110,1723605062395,-821.33,0.00013972,2]
[334826111,1723605062409,-7067.94,0.00013972,2]
[334826112,1723605062420,-500.0,0.00013972,2]
[334826113,1723605062431,-2774.43,0.00013972,2]
[334826114,1723605062443,-500.0,0.00013972,2]
[334826115,1723605062455,-500.0,0.00013972,2]
[334826116,1723605062467,-500.0,0.00013972,2]
[334826117,1723605062478,-1772.9,0.00013972,2]
[334826118,1723605062489,-2215.88,0.00013972,2]
[334826119,1723605062500,-500.0,0.00013972,2]
[334826120,1723605062512,-4957.02,0.00013972,2]
[334826121,1723605062524,-500.0,0.00013972,2]
[334826122,1723605062536,-500.0,0.00013972,2]
[334826123,1723605062548,-2209.2,0.00013972,2]
[334826124,1723605062560,-500.0,0.00013972,2]
[334826125,1723605062572,-500.0,0.00013972,2]
[334826126,1723605062585,-500.0,0.00013972,2]
[334826127,1723605062596,-500.0,0.00013972,2]
[334826128,1723605062607,-3061.51,0.00013972,2]
[334826129,1723605062619,-500.0,0.00013972,2]
[334826130,1723605062630,-500.0,0.00013972,2]
[334826131,1723605062643,-1481.57,0.00013972,2]
[334826132,1723605062654,-3686.74,0.00013972,2]
[334826133,1723605062665,-500.0,0.00013972,2]
[334826134,1723605062676,-500.0,0.00013972,2]
[334826135,1723605062687,-500.0,0.00013972,2]
[334826136,1723605062699,-500.0,0.00013972,2]
[334826137,1723605062710,-6552.26,0.00013972,2]
[334826138,1723605062721,-500.0,0.00013972,2]
[334826139,1723605062732,-10224.05,0.00013972,2]
[334826140,1723605062744,-500.0,0.00013972,2]
[334826141,1723605062755,-500.0,0.00013972,2]
[334826142,1723605062766,-500.0,0.00013972,2]
[334826143,1723605062777,-648.23660939,0.00013972,2]
[334826144,1723605062789,-5926.55,0.00013972,2]
[334826145,1723605062801,-2121.42,0.00013972,2]
[334826146,1723605062813,-1373.93,0.00013972,2]
[334826147,1723605062825,-500.0,0.00013972,2]
[334826148,1723605062835,-607.8,0.00013972,2]
[334826149,1723605062846,-1097.71,0.00013972,2]
[334826150,1723605062857,-2009.46,0.00013972,2]
[334826151,1723605062867,-3557.64,0.00013972,2]
[334826152,1723605062878,-500.0,0.00013972,2]
[334826153,1723605062888,-613.33,0.00013972,2]
[334826154,1723605062899,-500.0,0.00013972,2]
[334826155,1723605062910,-3282.55,0.00013972,2]
[334826156,1723605062921,-2903.06,0.00013972,2]
[334826157,1723605062931,-2177.71,0.00013972,2]
[334826158,1723605062942,-500.0,0.00013972,2]
[334826159,1723605062953,-982.92,0.00013972,2]
[334826160,1723605062964,-346.45004399,0.00013972,2]
[334826161,1723605062976,-500.0,0.00013972,2]
[334826162,1723605062988,-19581.8,0.00013972,2]
[334826163,1723605062999,-901.82,0.00013972,2]
[334826164,1723605063011,-500.0,0.00013972,2]
[334826165,1723605063021,-500.0,0.00013972,2]
[334826166,1723605063032,-580.59605009,0.00013972,2]
[334826167,1723605063043,-500.0,0.00013972,2]
[334826168,1723605063054,-500.0,0.00013972,2]
[334826169,1723605063065,-645.39,0.00013972,2]
[334826170,1723605063076,-503.71,0.00013972,2]
[334826171,1723605063087,-500.0,0.00013972,2]
[334826172,1723605063099,-1937.79,0.00013972,2]
[334826173,1723605063110,-559.53,0.00013972,2]
[334826174,1723605063121,-14794.65,0.00013972,2]
[334826175,1723605063132,-500.0,0.00013972,2]
[334826176,1723605063143,-505.44,0.00013972,2]
[334826177,1723605063154,-500.0,0.00013972,2]
[334826178,1723605063165,-6442.8,0.00013972,2]
[334826179,1723605063176,-500.0,0.00013972,2]
[334826180,1723605063187,-500.0,0.00013972,2]
[334826181,1723605063198,-646.11,0.00013972,2]
[334826182,1723605063209,-4533.79,0.00013972,2]
[334826183,1723605063220,-500.0,0.00013972,2]
[334826184,1723605063231,-1262.87,0.00013972,2]
[334826185,1723605063242,-500.0,0.00013972,2]
[334826186,1723605063253,-921.69,0.00013972,2]
[334826187,1723605063264,-500.0,0.00013972,2]
[334826188,1723605063275,-505.19008868,0.00013972,2]
[334826189,1723605063286,-500.0,0.00013972,2]
[334826190,1723605063297,-525.4399113,0.00013972,2]
[334826191,1723605063309,-3002.74,0.00013972,2]
[334826192,1723605063320,-3535.51,0.00013972,2]
[334826193,1723605063334,-7782.05,0.00013972,2]
[334826194,1723605063345,-500.0,0.00013972,2]
[334826195,1723605063357,-500.0,0.00013972,2]
[334826196,1723605063368,-500.0,0.00013972,2]
[334826197,1723605063379,-617.55,0.00013972,2]
[334826198,1723605063390,-1681.03,0.00013972,2]
[334826199,1723605063401,-5884.62,0.00013972,2]
[334826200,1723605063413,-1212.09,0.00013972,2]
[334826201,1723605063425,-1178.67,0.00013972,2]
[334826202,1723605063435,-500.0,0.00013972,2]
[334826203,1723605063446,-500.0,0.00013972,2]
[334826204,1723605063458,-2997.53,0.00013972,2]
[334826205,1723605063469,-1667.2,0.00013972,2]
[334826206,1723605063479,-13353.51,0.00013972,2]
[334826207,1723605063491,-5572.93,0.00013972,2]
[334826208,1723605063502,-500.0,0.00013972,2]
[334826209,1723605063513,-3987.19,0.00013972,2]
[334826210,1723605063524,-500.0,0.00013972,2]
[334826211,1723605063534,-6308.52,0.00013972,2]
[334826212,1723605063545,-500.0,0.00013972,2]
[334826213,1723605063556,-3939.64,0.00013972,2]
[334826214,1723605063568,-19005.59,0.00013972,2]
[334826215,1723605063580,-500.0,0.00013972,2]
[334826216,1723605063591,-500.0,0.00013972,2]
[334826217,1723605063602,-500.0,0.00013972,2]
[334826218,1723605063613,-500.0,0.00013972,2]
[334826219,1723605063624,-1888.59,0.00013972,2]
[334826220,1723605063635,-500.0,0.00013972,2]
[334826221,1723605063646,-500.0,0.00013972,2]
[334826222,1723605063658,-4079.03,0.00013972,2]
[334826223,1723605063669,-2797.42,0.00013972,2]
[334826224,1723605063680,-500.0,0.00013972,2]
[334826225,1723605063691,-644.38,0.00013972,2]
[334826226,1723605063702,-500.0,0.00013972,2]
[334826227,1723605063714,-999.48,0.00013972,2]
[334826228,1723605063725,-500.0,0.00013972,2]
[334826229,1723605063736,-4551.83,0.00013972,2]
[334826230,1723605063747,-500.0,0.00013972,2]
[334826231,1723605063759,-1084.39,0.00013972,2]
[334826232,1723605063770,-1701.31,0.00013972,2]
[334826233,1723605063781,-500.0,0.00013972,2]
[334826234,1723605063793,-7815.54,0.00013972,2]
[334826235,1723605063803,-500.0,0.00013972,2]
[334826236,1723605063814,-500.0,0.00013972,2]
[334826237,1723605063825,-7759.78,0.00013972,2]
[334826238,1723605063836,-1415.9,0.00013972,2]
[334826239,1723605063848,-500.0,0.00013972,2]
[334826240,1723605063860,-6685.67,0.00013972,2]
[334826241,1723605063871,-500.0,0.00013972,2]
[334826242,1723605063883,-500.0,0.00013972,2]
[334826243,1723605063895,-4953.62,0.00013972,2]
[334826244,1723605063908,-1938.51,0.00013972,2]
[334826245,1723605063919,-1637.32,0.00013972,2]
[334826246,1723605063930,-1229.49,0.00013972,2]
[334826247,1723605063941,-500.0,0.00013972,2]
[334826248,1723605063952,-729.12,0.00013972,2]
[334826249,1723605063964,-500.0,0.00013972,2]
[334826250,1723605063975,-500.0,0.00013972,2]
[334826251,1723605063987,-5524.35,0.00013972,2]
[334826252,1723605064000,-500.0,0.00013972,2]
[334826253,1723605064012,-746.42,0.00013972,2]
[334826254,1723605064024,-500.0,0.00013972,2]
[334826255,1723605064035,-1084.25,0.00013972,2]
[334826256,1723605064047,-1241.19,0.00013972,2]
[334826257,1723605064058,-23349.91,0.00013972,2]
[334826258,1723605064069,-4711.28,0.00013972,2]
[334826259,1723605064082,-959.78,0.00013972,2]
[334826260,1723605064093,-1166.89,0.00013972,2]
[334826261,1723605064104,-500.0,0.00013972,2]
[334826262,1723605064116,-500.0,0.00013972,2]
[334826263,1723605064127,-920.13,0.00013972,2]
[334826264,1723605064139,-500.0,0.00013972,2]
[334826265,1723605064150,-4212.25,0.00013972,2]
[334826266,1723605064162,-1991.21,0.00013972,2]
[334826267,1723605064172,-500.0,0.00013972,2]
[334826268,1723605064185,-566.69,0.00013972,2]
[334826269,1723605064197,-500.0,0.00013972,2]
[334826270,1723605064209,-500.0,0.00013972,2]
[334826271,1723605064220,-3979.88,0.00013972,2]
[334826272,1723605064231,-500.0,0.00013972,2]
[334826273,1723605064243,-249.48498899,0.00013972,2]
[334826274,1723605064255,-200.0,0.00013973,2]
[334826275,1723605064266,-189.77,0.00013973,2]
[334826276,1723605064278,-525.88,0.00013988,2]
[334826277,1723605064289,-1156.61,0.00013988,2]
[334826278,1723605064301,-2386.53343546,0.00013996,2]
[334826279,1723605064312,-2386.53343546,0.00013996,2]
[334826280,1723605064325,-150.08,0.00014012,2]
[334826281,1723605064338,-587.0,0.00014221,2]
[334826282,1723605064349,-525.88,0.00014245,2]
[334826283,1723605064361,-525.88,0.00014245,2]
[334826284,1723605064374,-525.88,0.00014245,2]
[334826285,1723605064386,-525.88,0.00014245,2]
[334826286,1723605064397,-525.88,0.00014245,2]
[334826287,1723605064411,-525.88,0.00014245,2]
[334826288,1723605064423,-525.99,0.00014245,2]
[334826289,1723605064434,-2131.89,0.00014245,2]
[334826290,1723605064446,-2131.89,0.00014245,2]
[334826291,1723605064457,-2131.89,0.00014245,2]
[334826292,1723605064469,-2131.89,0.00014245,2]
[334826293,1723605064481,-2131.89,0.00014245,2]
[334826294,1723605064493,-2131.89,0.00014245,2]
[334826295,1723605064505,-2131.89,0.00014245,2]
[334826296,1723605064518,-2132.10097992,0.00014245,2]
[334826297,1723605064530,-1156.61,0.00014245,2]
[334826298,1723605064542,-1156.61,0.00014245,2]
[334826299,1723605064553,-1156.61,0.00014245,2]
[334826300,1723605064565,-1156.61,0.00014245,2]
[334826301,1723605064577,-1156.61,0.00014245,2]
[334826302,1723605064587,-1156.61,0.00014245,2]
[334826303,1723605064598,-1156.63163612,0.00014245,2]
[334826304,1723605064610,-4897.3,0.00014245,2]
[334826305,1723605064622,-4897.3,0.00014245,2]
[334826306,1723605064634,-4897.3,0.00014245,2]
[334826307,1723605064645,-4897.3,0.00014245,2]
[334826308,1723605064658,-4897.3,0.00014245,2]
[334826309,1723605064670,-4897.3,0.00014245,2]
[334826310,1723605064682,-4897.3,0.00014245,2]
[334826311,1723605064695,-4897.47588404,0.00014245,2]
[334826312,1723605064707,-500.0,0.00014245,2]
[334826313,1723605064718,-500.0,0.00014245,2]
[334826314,1723605064731,-500.0,0.00014245,2]
[334826315,1723605064742,-623.04,0.00014245,2]
[334826316,1723605064754,-623.04,0.00014245,2]
[334826317,1723605064766,-623.04,0.00014245,2]
[334826318,1723605064778,-623.04,0.00014245,2]
[334826319,1723605064790,-623.04,0.00014245,2]
[334826320,1723605064802,-500.0,0.00014246,2]
[334826321,1723605064814,-500.0,0.00014246,2]
[334826322,1723605064827,-500.0,0.00014246,2]
[334826323,1723605064839,-1578.73,0.00014246,2]
[334826324,1723605064851,-333.78059267,0.00014246,2]
[334826325,1723605064863,-209.72745057,0.00014246,2]
[334826326,1723605064875,-500.0,0.00014246,2]
[334826327,1723605064887,-716.57,0.00014246,2]
[334826328,1723605064898,-500.0,0.00014246,2]
[334826329,1723605064910,-1456.16,0.00014246,2]
[334826330,1723605064922,-722.17,0.00014246,2]
[334826331,1723605064933,-500.0,0.00014246,2]
[334826332,1723605064945,-666.82,0.00014246,2]
[334826333,1723605064957,-1288.24,0.00014246,2]
[334826334,1723605064969,-529.74,0.00014246,2]
[334826335,1723605064981,-608.2,0.00014246,2]
[334826336,1723605064993,-1485.87,0.00014246,2]
[334826337,1723605065005,-514.2,0.00014246,2]
[334826338,1723605065017,-517.05,0.00014246,2]
[334826339,1723605065029,-500.0,0.00014246,2]
[334826340,1723605065041,-500.0,0.00014246,2]
[334826341,1723605065052,-500.0,0.00014246,2]
[334826342,1723605065064,-500.0,0.00014246,2]
[334826343,1723605065075,-500.0,0.00014246,2]
[334826344,1723605065087,-500.0,0.00014246,2]
[334826345,1723605065099,-642.75,0.00014246,2]
[334826346,1723605065110,-1111.14,0.00014246,2]
[334826347,1723605065122,-500.0,0.00014246,2]
[334826348,1723605065134,-500.0,0.00014246,2]
[334826349,1723605065146,-500.0,0.00014246,2]
[334826350,1723605065158,-651.1,0.00014246,2]
[334826351,1723605065170,-502.05208803,0.00014246,2]
[334826352,1723605065182,-500.0,0.00014246,2]
[334826353,1723605065194,-500.0,0.00014246,2]
[334826354,1723605065205,-1485.31,0.00014246,2]
[334826355,1723605065216,-500.0,0.00014246,2]
[334826356,1723605065228,-500.0,0.00014246,2]
[334826357,1723605065240,-1237.37,0.00014246,2]
[334826358,1723605065252,-500.0,0.00014246,2]
[334826359,1723605065263,-500.0,0.00014246,2]
[334826360,1723605065275,-500.0,0.00014246,2]
[334826361,1723605065287,-500.0,0.00014246,2]
[334826362,1723605065298,-500.0,0.00014246,2]
[334826363,1723605065984,-500.0,0.00014246,2]
[334826364,1723605066005,-2683.95,0.00014246,2]
[334826365,1723605066027,-500.0,0.00014246,2]
[334826366,1723605066048,-500.0,0.00014246,2]
[334826367,1723605066079,-500.0,0.00014246,2]
[334826368,1723605066091,-500.0,0.00014246,2]
[334826369,1723605066101,-543.73,0.00014246,2]
[334826370,1723605066110,-1047.06,0.00014246,2]
[334826371,1723605066120,-500.0,0.00014246,2]
[334826372,1723605066129,-500.0,0.00014246,2]
[334826373,1723605066139,-1348.18,0.00014246,2]
[334826374,1723605066148,-500.0,0.00014246,2]
[334826375,1723605066157,-500.0,0.00014246,2]
[334826376,1723605066166,-1232.81,0.00014246,2]
[334826377,1723605066176,-503.52192189,0.00014246,2]
[334826378,1723605066185,-1118.67,0.00014246,2]
[334826379,1723605066194,-500.0,0.00014246,2]
[334826380,1723605066204,-976.44,0.00014246,2]
[334826381,1723605066213,-500.0,0.00014246,2]
[334826382,1723605066222,-598.58,0.00014246,2]
[334826383,1723605066231,-500.0,0.00014246,2]
[334826384,1723605066242,-500.0,0.00014246,2]
[334826385,1723605066251,-522.02524491,0.00014246,2]
[334826386,1723605066261,-500.0,0.00014246,2]
[334826387,1723605066271,-500.0,0.00014246,2]
[334826388,1723605066280,-500.0,0.00014246,2]
[334826389,1723605066289,-775.08,0.00014246,2]
[334826390,1723605066299,-500.0,0.00014246,2]
[334826391,1723605066309,-500.0,0.00014246,2]
[334826392,1723605066318,-500.0,0.00014246,2]
[334826393,1723605066330,-500.0,0.00014246,2]
[334826394,1723605066341,-504.65353379,0.00014246,2]
[334826395,1723605066353,-716.51,0.00014246,2]
[334826396,1723605066362,-630.58,0.00014246,2]
[334826397,1723605066372,-500.0,0.00014246,2]
[334826398,1723605066381,-500.0,0.00014246,2]
[334826399,1723605066391,-1000.0,0.00014246,2]
[334826400,1723605066401,-500.0,0.00014246,2]
[334826401,1723605066412,-500.0,0.00014246,2]
[334826402,1723605066422,-618.82,0.00014246,2]
[334826403,1723605066432,-1479.01,0.00014246,2]
[334826404,1723605066442,-559.42,0.00014246,2]
[334826405,1723605066451,-500.0,0.00014246,2]
[334826406,1723605066462,-500.0,0.00014246,2]
[334826407,1723605066471,-3752.58,0.00014246,2]
[334826408,1723605066481,-500.0,0.00014246,2]
[334826409,1723605066491,-591.66,0.00014246,2]
[334826410,1723605066501,-500.0,0.00014246,2]
[334826411,1723605066510,-500.0,0.00014246,2]
[334826412,1723605066519,-500.0,0.00014246,2]
[334826413,1723605066529,-500.0,0.00014246,2]
[334826414,1723605066538,-500.0,0.00014246,2]
[334826415,1723605066548,-1435.79,0.00014246,2]
[334826416,1723605066557,-1607.61,0.00014246,2]
[334826417,1723605066566,-1891.11,0.00014246,2]
[334826418,1723605066578,-662.17,0.00014246,2]
[334826419,1723605066588,-924.42,0.00014246,2]
[334826420,1723605066597,-1076.95,0.00014246,2]
[334826421,1723605066606,-500.0,0.00014246,2]
[334826422,1723605066616,-500.0,0.00014246,2]
[334826423,1723605066626,-2239.55,0.00014246,2]
[334826424,1723605066635,-500.0,0.00014246,2]
[334826425,1723605066645,-672.35,0.00014246,2]
[334826426,1723605066655,-500.0,0.00014246,2]
[334826427,1723605066664,-4507.7,0.00014246,2]
[334826428,1723605066674,-500.0,0.00014246,2]
[334826429,1723605066683,-500.0,0.00014246,2]
[334826430,1723605066692,-500.0,0.00014246,2]
[334826431,1723605066701,-500.0,0.00014246,2]
[334826432,1723605066711,-1006.17,0.00014246,2]
[334826433,1723605066720,-500.0,0.00014246,2]
[334826434,1723605066729,-1053.16,0.00014246,2]
[334826435,1723605066739,-500.0,0.00014246,2]
[334826436,1723605066749,-500.0,0.00014246,2]
[334826437,1723605066759,-500.0,0.00014246,2]
[334826438,1723605066768,-2456.38,0.00014246,2]
[334826439,1723605066778,-3482.29,0.00014246,2]
[334826440,1723605066787,-2187.52,0.00014246,2]
[334826441,1723605066797,-500.0,0.00014246,2]
[334826442,1723605066807,-500.0,0.00014246,2]
[334826443,1723605066816,-829.91,0.00014246,2]
[334826444,1723605066826,-500.0,0.00014246,2]
[334826445,1723605066837,-500.0,0.00014246,2]
[334826446,1723605066847,-1703.74,0.00014246,2]
[334826447,1723605066857,-1971.7,0.00014246,2]
[334826448,1723605066866,-760.2,0.00014246,2]
[334826449,1723605066875,-1826.68,0.00014246,2]
[334826450,1723605066885,-500.0,0.00014246,2]
[334826451,1723605066894,-500.0,0.00014246,2]
[334826452,1723605066904,-2857.54,0.00014246,2]
[334826453,1723605066914,-500.0,0.00014246,2]
[334826454,1723605066923,-513.03986855,0.00014246,2]
[334826455,1723605066933,-500.0,0.00014246,2]
[334826456,1723605066943,-500.0,0.00014246,2]
[334826457,1723605066952,-2493.78,0.00014246,2]
[334826458,1723605066962,-1745.81,0.00014246,2]
[334826459,1723605066972,-500.0,0.00014246,2]
[334826460,1723605066981,-500.0,0.00014246,2]
[334826461,1723605066990,-500.0,0.00014246,2]
[334826462,1723605067000,-500.0,0.00014246,2]
[334826463,1723605067010,-500.0,0.00014246,2]
[334826464,1723605067019,-500.0,0.00014246,2]
[334826465,1723605067028,-247.79380807,0.00014246,2]
[334826466,1723605067037,-402.91503091,0.00014246,2]
[334826467,1723605067046,-500.0,0.00014246,2]
[334826468,1723605067056,-2939.52,0.00014246,2]
[334826469,1723605067066,-893.52,0.00014246,2]
[334826470,1723605067076,-500.0,0.00014246,2]
[334826471,1723605067089,-1363.03,0.00014246,2]
[334826472,1723605067099,-500.0,0.00014246,2]
[334826473,1723605067108,-500.0,0.00014246,2]
[334826474,1723605067118,-500.0,0.00014246,2]
[334826475,1723605067127,-500.0,0.00014246,2]
[334826476,1723605067137,-500.0,0.00014246,2]
[334826477,1723605067146,-2070.38,0.00014246,2]
[334826478,1723605067155,-168.78524885,0.00014246,2]
[334826479,1723605067164,-4162.9,0.00014246,2]
[334826480,1723605067175,-500.0,0.00014246,2]
[334826481,1723605067185,-1715.05,0.00014246,2]
[334826482,1723605067194,-1237.73,0.00014246,2]
[334826483,1723605067204,-500.0,0.00014246,2]
[334826484,1723605067213,-500.0,0.00014246,2]
[334826485,1723605067222,-500.0,0.00014246,2]
[334826486,1723605067231,-2002.18,0.00014246,2]
[334826487,1723605067241,-214.19630603,0.00014246,2]
[334826488,1723605067251,-519.39,0.00014246,2]
[334826489,1723605067260,-1293.49,0.00014246,2]
[334826490,1723605067270,-500.0,0.00014246,2]
[334826491,1723605067280,-500.0,0.00014246,2]
[334826492,1723605067289,-1362.3,0.00014246,2]
[334826493,1723605067299,-1490.02,0.00014246,2]
[334826494,1723605067308,-500.0,0.00014246,2]
[334826495,1723605067317,-2761.82,0.00014246,2]
[334826496,1723605067332,-694.54,0.00014246,2]
[334826497,1723605067342,-500.0,0.00014246,2]
[334826498,1723605067351,-500.0,0.00014246,2]
[334826499,1723605067361,-2115.54,0.00014246,2]
[334826500,1723605067370,-500.0,0.00014246,2]
[334826501,1723605067380,-500.0,0.00014246,2]
[334826502,1723605067390,-500.0,0.00014246,2]
[334826503,1723605067399,-500.0,0.00014246,2]
[334826504,1723605067410,-500.0,0.00014246,2]
[334826505,1723605067421,-1981.16,0.00014246,2]
[334826506,1723605067430,-1990.68,0.00014246,2]
[334826507,1723605067440,-500.0,0.00014246,2]
[334826508,1723605067450,-500.0,0.00014246,2]
[334826509,1723605067459,-500.0,0.00014246,2]
[334826510,1723605067469,-500.0,0.00014246,2]
[334826511,1723605067479,-711.09,0.00014246,2]
[334826512,1723605067488,-569.37,0.00014246,2]
[334826513,1723605067498,-2757.85,0.00014246,2]
[334826514,1723605067507,-500.0,0.00014246,2]
[334826515,1723605067516,-500.0,0.00014246,2]
[334826516,1723605067526,-500.0,0.00014246,2]
[334826517,1723605067536,-2766.44,0.00014246,2]
[334826518,1723605067545,-500.0,0.00014246,2]
[334826519,1723605067555,-1317.85,0.00014246,2]
[334826520,1723605067564,-500.0,0.00014246,2]
[334826521,1723605067574,-500.0,0.00014246,2]
[334826522,1723605067589,-2961.75,0.00014246,2]
[334826523,1723605067598,-1308.18,0.00014246,2]
[334826524,1723605067607,-500.0,0.00014246,2]
[334826525,1723605067616,-500.0,0.00014246,2]
[334826526,1723605067626,-2490.28,0.00014246,2]
[334826527,1723605067635,-500.0,0.00014246,2]
[334826528,1723605067644,-500.0,0.00014246,2]
[334826529,1723605067653,-500.0,0.00014246,2]
[334826530,1723605067663,-2203.39,0.00014246,2]
[334826531,1723605067672,-627.17891595,0.00014246,2]
[334826532,1723605067681,-152.506681,0.00014246,2]
[334826533,1723605067691,-500.0,0.00014246,2]
[334826534,1723605067700,-500.0,0.00014246,2]
[334826535,1723605067709,-508.38,0.00014246,2]
[334826536,1723605067718,-500.0,0.00014246,2]
[334826537,1723605067728,-292.07093466,0.00014246,2]
[334826538,1723605067737,-500.0,0.00014246,2]
[334826539,1723605067746,-878.97,0.00014246,2]
[334826540,1723605067755,-500.0,0.00014246,2]
[334826541,1723605067765,-172.26067257,0.00014246,2]
[334826542,1723605067774,-500.0,0.00014246,2]
[334826543,1723605067783,-683.69,0.00014246,2]
[334826544,1723605067792,-1154.39,0.00014246,2]
[334826545,1723605067802,-1322.45,0.00014246,2]
[334826546,1723605067812,-500.0,0.00014246,2]
[334826547,1723605067821,-500.0,0.00014246,2]
[334826548,1723605067832,-500.0,0.00014246,2]
[334826549,1723605067841,-500.0,0.00014246,2]
[334826550,1723605067850,-500.0,0.00014246,2]
[334826551,1723605067859,-500.0,0.00014246,2]
[334826552,1723605067869,-3824.63,0.00014246,2]
[334826553,1723605067878,-2480.21,0.00014246,2]
[334826554,1723605067887,-500.0,0.00014246,2]
[334826555,1723605067897,-553.9,0.00014246,2]
[334826556,1723605067906,-917.23,0.00014246,2]
[334826557,1723605067915,-1073.07,0.00014246,2]
[334826558,1723605067924,-500.0,0.00014246,2]
[334826559,1723605067933,-500.0,0.00014246,2]
[334826560,1723605067943,-500.0,0.00014246,2]
[334826561,1723605067952,-500.0,0.00014246,2]
[334826562,1723605067961,-159.4,0.00014246,2]
[334826563,1723605067970,-649.52,0.00014246,2]
[334826564,1723605067980,-1290.02,0.00014246,2]
[334826565,1723605067990,-3127.31,0.00014246,2]
[334826566,1723605067999,-1748.45,0.00014246,2]
[334826567,1723605068009,-858.47,0.00014246,2]
[334826568,1723605068019,-793.31,0.00014246,2]
[334826569,1723605068029,-500.0,0.00014246,2]
[334826570,1723605068039,-500.0,0.00014246,2]
[334826571,1723605068048,-609.62,0.00014246,2]
[334826572,1723605068057,-500.0,0.00014246,2]
[334826573,1723605068067,-500.0,0.00014246,2]
[334826574,1723605068079,-500.0,0.00014246,2]
[334826575,1723605068088,-500.0,0.00014246,2]
[334826576,1723605068098,-303.71484539,0.00014246,2]
[334826577,1723605068107,-1268.63,0.00014246,2]
[334826578,1723605068116,-1098.68,0.00014246,2]
[334826579,1723605068127,-534.68,0.00014246,2]
[334826580,1723605068136,-500.0,0.00014246,2]
[334826581,1723605068146,-500.0,0.00014246,2]
[334826582,1723605068155,-500.0,0.00014246,2]
[334826583,1723605068164,-500.0,0.00014246,2]
[334826584,1723605068174,-500.0,0.00014246,2]
[334826585,1723605068183,-500.0,0.00014246,2]
[334826586,1723605068193,-500.0,0.00014246,2]
[334826587,1723605068203,-500.0,0.00014246,2]
[334826588,1723605068212,-1442.17,0.00014246,2]
[334826589,1723605068221,-500.0,0.00014246,2]
[334826590,1723605068231,-500.0,0.00014246,2]
[334826591,1723605068240,-2112.81,0.00014246,2]
[334826592,1723605068250,-2201.12,0.00014246,2]
[334826593,1723605068259,-935.54,0.00014246,2]
[334826594,1723605068269,-500.0,0.00014246,2]
[334826595,1723605068278,-702.32,0.00014246,2]
[334826596,1723605068288,-500.0,0.00014246,2]
[334826597,1723605068297,-647.97,0.00014246,2]
[334826598,1723605068306,-500.0,0.00014246,2]
[334826599,1723605068316,-500.0,0.00014246,2]
[334826600,1723605068328,-507.01,0.00014246,2]
[334826601,1723605068341,-2514.69,0.00014246,2]
[334826602,1723605068350,-500.0,0.00014246,2]